[Event "UZB-ch Men Final 2019"]
[Site "Tashkent"]
[Date "2019.07.09"]
[Round "8.6"]
[White "Khoroshev, Nikita"]
[Black "Nigmatov, Ortik"]
[Result "0-1"]
[ECO "A05"]
[WhiteElo "2414"]
[BlackElo "2488"]
[Annotator "ChessBase"]
[PlyCount "100"]
[EventDate "2019.07.02"]
[EventType "tourn"]
[EventCountry "UZB"]
[SourceTitle "playchess.com"]
[Source "ChessBase"]
[SourceQuality "1"]
[TimeControl "5400+30"]

1. Nf3 {[%emt 0:00:00]} Nf6 {[%emt 0:00:00]} 2. b3 {[%emt 0:00:00]} g6 {[%emt 0:00:00]} 3. Bb2 {[%emt 0:00:01]} Bg7 {[%emt 0:00:00]} 4. c4 {[%emt 0:00:24]} O-O {[%emt 0:00:01]} 5. g3 {[%emt 0:00:04]} d6 {[%emt 0:00:06]} 6. d4 {[%emt 0:00:43]} Nbd7 {[%emt 0:07:06]} 7. Bg2 {[%emt 0:00:11]} c6 {[%emt 0:00:34]} 8. O-O {[%emt 0:00:37]} Re8 {[%emt 0:00:30]} 9. Nc3 {[%emt 0:02:30]} e5 {[%emt 0:07:53]} 10. dxe5 {[%emt 0:02:32]} dxe5 {[%emt 0:00:02]} 11. Ng5 {[%emt 0:01:32]} Qe7 {[%emt 0:06:50]} 12. Qd2 {[%emt 0:02:02]} Nf8 {[%emt 0:04:35]} 13. Rad1 {[%emt 0:00:46]} Bh6 {[%emt 0:08:01]} 14. f4 {[%emt 0:12:01]} Bf5 {[%emt 0:00:59]} 15. Qd6 {[%emt 0:07:46]} exf4 {[%emt 0:09:02]} 16. Qxe7 {[%emt 0:00:48]} Rxe7 {[%emt 0:00:01]} 17. gxf4 {[%emt 0:00:01]} Bg7 {[%emt 0:12:57]} 18. e4 {[%emt 0:09:41]} Bg4 {[%emt 0:00:05]} 19. Rde1 {[%emt 0:03:21]} h6 {[%emt 0:01:11]} 20. e5 {[%emt 0:02:08]} hxg5 {[%emt 0:04:16]} 21. exf6 {[%emt 0:00:06]} Rxe1 {[%emt 0:00:10]} 22. Rxe1 {[%emt 0:00:27]} Bxf6 {[%emt 0:00:05]} 23. fxg5 {[%emt 0:00:07]} Bd4+ {[%emt 0:00:19]} 24. Kh1 {[%emt 0:01:40]} Ne6 {[%emt 0:00:21]} 25. h4 {[%emt 0:01:56]} Rd8 {[%emt 0:06:48]} 26. Kh2 {[%emt 0:02:36]} Bf5 {[%emt 0:08:21]} 27. Ba1 {[%emt 0:02:47]} Bf2 {[%emt 0:00:22]} 28. Re2 {[%emt 0:04:03]} Bxh4 {[%emt 0:00:20]} 29. Ne4 {[%emt 0:00:15]} Bxe4 {[%emt 0:01:15]} 30. Bxe4 {[%emt 0:03:20]} Bxg5 {[%emt 0:00:15]} 31. b4 {[%emt 0:01:00]} Bf4+ {[%emt 0:01:07]} 32. Kg2 {[%emt 0:01:10]} Bh6 {[%emt 0:01:19]} 33. Bf6 {[%emt 0:01:23]} Re8 {[%emt 0:01:35]} 34. Kf1 {[%emt 0:00:07]} Bg7 {[%emt 0:00:25]} 35. Bh4 {[%emt 0:00:08]} Nd4 {[%emt 0:00:32]} 36. Re1 {[%emt 0:00:17]} f5 {[%emt 0:02:37]} 37. Bg2 {[%emt 0:00:01]} Rxe1+ {[%emt 0:00:14]} 38. Bxe1 {[%emt 0:00:02]} Kf7 {[%emt 0:00:10]} 39. b5 {[%emt 0:00:12]} cxb5 {[%emt 0:04:03]} 40. cxb5 {[%emt 0:00:04]} b6 {[%emt 0:00:37]} 41. a4 {[%emt 0:01:18]} Be5 {[%emt 0:00:08]} 42. Bd5+ {[%emt 0:01:18]} Kf6 {[%emt 0:00:06]} 43. Bf2 {[%emt 0:00:32]} g5 {[%emt 0:00:04]} 44. Bb7 {[%emt 0:01:41]} g4 {[%emt 0:00:13]} 45. Bh4+ {[%emt 0:00:25]} Kg6 {[%emt 0:01:38]} 46. Bc8 {[%emt 0:00:43]} Kh5 {[%emt 0:00:32]} 47. Bd8 {[%emt 0:00:11]} f4 {[%emt 0:00:19]} 48. Bd7 {[%emt 0:01:53]} f3 {[%emt 0:00:11]} 49. a5 {[%emt 0:00:47]} g3 {[%emt 0:00:14]} 50. Bh3 {[%emt 0:00:43]} bxa5 {[%emt 0:00:09]} 0-1

[Event "UZB-ch Men Final 2019"]
[Site "Tashkent"]
[Date "2019.07.10"]
[Round "9"]
[White "Abdusattorov, Nodirbek"]
[Black "Iuldachev, Saidali"]
[Result "1-0"]
[ECO "D25"]
[WhiteElo "2598"]
[BlackElo "2451"]
[Annotator "ChessBase"]
[PlyCount "95"]
[EventDate "2019.??.??"]
[EventCountry "UZB"]
[SourceTitle "playchess.com"]
[Source "ChessBase"]
[SourceQuality "1"]
[TimeControl "5400+30"]

1. d4 d5 2. Nf3 Nf6 3. c4 dxc4 4. e3 Bg4 5. Bxc4 e6 6. Qb3 Bxf3 7. gxf3 Nbd7 8. Nc3 Rb8 9. a4 Be7 10. Rg1 g6 11. e4 c6 12. Bf4 Rc8 13. O-O-O Qb6 14. Qa2 Bb4 15. Be3 Qa5 16. Rd3 O-O 17. Kb1 a6 18. Rg5 Qc7 19. a5 Qxh2 20. Qb3 Bxc3 21. Rxc3 Rb8 22. Rc1 b5 23. Bxe6 fxe6 24. Qxe6+ Rf7 25. Qxc6 Nf8 26. Qxa6 Qh3 27. Rg3 Qd7 28. d5 Nh5 29. Rg5 Rxf3 30. Qc6 Nf6 31. a6 Rxe3 32. fxe3 Nxe4 33. Rg2 Rd8 34. Qxd7 Rxd7 35. Rc6 h5 36. Rc8 g5 37. Re8 Nf6 38. Rxg5+ Kf7 39. Ra8 N8h7 40. Rf5 Kg6 41. Re5 h4 42. a7 Kh6 43. Re6 h3 44. Rxf6+ Nxf6 45. Rh8+ Nh7 46. a8=Q h2 47. d6 Rg7 48. Ka2 1-0

[Event "UZB-ch Men Final 2019"]
[Site "Tashkent"]
[Date "2019.07.10"]
[Round "9"]
[White "Yakubboev, Nodirbek"]
[Black "Khoroshev, Nikita"]
[Result "1-0"]
[ECO "E17"]
[WhiteElo "2575"]
[BlackElo "2414"]
[Annotator "ChessBase"]
[PlyCount "133"]
[EventDate "2019.??.??"]
[EventCountry "UZB"]
[SourceTitle "playchess.com"]
[Source "ChessBase"]
[SourceQuality "1"]
[TimeControl "5400+30"]

1. d4 Nf6 2. c4 e6 3. Nf3 b6 4. g3 Bb7 5. Bg2 Bb4+ 6. Bd2 Be7 7. O-O O-O 8. Bf4 Na6 9. Re1 d5 10. Ne5 c5 11. Nc3 Re8 12. Rc1 Ne4 13. cxd5 exd5 14. Bxe4 dxe4 15. Qb3 Rf8 16. d5 Bf6 17. Red1 Bxe5 18. Bxe5 e3 19. Rf1 Rc8 20. Qc4 Qd7 21. f3 Nb4 22. Rfd1 Rcd8 23. d6 Rfe8 24. Bf4 h6 25. g4 Re6 26. a3 Ba6 27. Qb3 Nc6 28. Qa4 Na5 29. Qxd7 Rxd7 30. b4 Nb3 31. Rc2 g5 32. Bg3 Nd4 33. Rb2 Kg7 34. bxc5 bxc5 35. Re1 f5 36. gxf5 Nxf5 37. Ne4 Nxg3 38. hxg3 Re5 39. Rc1 c4 40. g4 Kg6 41. Rd1 Bb5 42. Rd4 Bc6 43. Nc3 Re6 44. Rxc4 Rdxd6 45. Kg2 Re8 46. Kg3 Re5 47. Rb8 Rf6 48. Rg8+ Kf7 49. Rc8 Ree6 50. Rc7+ Kg6 51. Rxa7 h5 52. gxh5+ Kxh5 53. Ra6 Kg6 54. Rc5 Kh6 55. a4 Rg6 56. a5 Rgf6 57. Rb6 Rg6 58. a6 Ba8 59. Rxe6 Rxe6 60. Ra5 Rc6 61. Nd5 Rc2 62. Nb6 Bc6 63. a7 Rxe2 64. Rc5 Ba8 65. Rc8 Re1 66. Rxa8 Rg1+ 67. Kh2 1-0

[Event "UZB-ch Men Final 2019"]
[Site "Tashkent"]
[Date "2019.07.10"]
[Round "9"]
[White "Vokhidov, Shamsiddin"]
[Black "Sindarov, Javokhir"]
[Result "0-1"]
[ECO "C92"]
[WhiteElo "2515"]
[BlackElo "2479"]
[Annotator "ChessBase"]
[PlyCount "64"]
[EventDate "2019.??.??"]
[EventCountry "UZB"]
[SourceTitle "playchess.com"]
[Source "ChessBase"]
[SourceQuality "1"]
[TimeControl "5400+30"]

1. e4 e5 2. Nf3 Nc6 3. Bb5 a6 4. Ba4 Nf6 5. O-O Be7 6. Re1 b5 7. Bb3 d6 8. c3 O-O 9. h3 Bb7 10. d4 Re8 11. a4 Bf8 12. Bg5 Na5 13. axb5 Nxb3 14. Qxb3 axb5 15. Bxf6 gxf6 16. Rxa8 Qxa8 17. dxe5 Bxe4 18. Nbd2 Bd5 19. Qxb5 fxe5 20. Nh4 Kh8 21. Qd3 Be7 22. Nf5 Bxg2 23. Nxe7 Rxe7 24. Qf5 Re6 25. f3 Rg6 26. Kh2 Qf8 27. Re4 Qh6 28. Nc4 Qc1 29. Rg4 Qh1+ 30. Kg3 Bxh3 31. Nxe5 Qg2+ 32. Kf4 Qh2+ {Nc4 Qh1 Kg3 Kg7 Qc8} 0-1

[Event "UZB-ch Men Final 2019"]
[Site "Tashkent"]
[Date "2019.07.10"]
[Round "9"]
[White "Dzhumaev, Marat"]
[Black "Saydaliev, Saidakbar"]
[Result "1/2-1/2"]
[ECO "E05"]
[WhiteElo "2439"]
[BlackElo "2384"]
[Annotator "NA"]
[PlyCount "173"]
[EventDate "2019.??.??"]
[EventCountry "UZB"]
[SourceTitle "playchess.com"]
[Source "ChessBase"]
[SourceQuality "1"]
[TimeControl "5400+30"]

1. d4 Nf6 2. c4 e6 3. g3 d5 4. Nf3 Be7 5. Bg2 O-O 6. O-O dxc4 7. Qc2 b6 8. Rd1 Bb7 9. Qxc4 c5 10. Nc3 cxd4 11. Bf4 Qc8 12. Qxd4 Rd8 13. Qa4 Rxd1+ 14. Rxd1 Nbd7 15. Bd6 Bxd6 16. Rxd6 Nc5 17. Qa3 Nce4 18. Nxe4 Bxe4 19. Ne5 Qc1+ 20. Bf1 Qc7 21. f3 Bd5 22. e4 Bxe4 23. fxe4 Nxe4 24. Nc4 Nxd6 25. Nxd6 Rd8 26. Ne4 Qe5 27. Nf2 g6 28. Bd3 h5 29. Kg2 a5 30. Qb3 Qd4 31. a4 Kg7 32. Bb5 Rd5 33. Qc3 e5 34. Kf3 Qxc3+ 35. bxc3 f5 36. h4 Kf6 37. Ke3 g5 38. hxg5+ Kxg5 39. Nd3 Kg4 40. Bc4 Rd6 41. Kf2 e4 42. Nf4 Rd2+ 43. Be2+ Kg5 44. Ke3 Ra2 45. Bb5 Kg4 46. Be8 Kxg3 47. Nxh5+ Kg4 48. Nf6+ Kg3 49. Nh5+ Kg4 50. Nf6+ Kg3 51. Nh5+ Kh4 52. Ng7 Kg4 53. Bd7 Ra3 54. Nxf5 Rxc3+ 55. Kxe4 Kg5 56. Ne3 Rc1 57. Nd5 Re1+ 58. Kd4 Rd1+ 59. Ke5 Re1+ 60. Kd6 Rd1 61. Bb5 Kf5 62. Kc6 Ke5 63. Nxb6 Rc1+ 64. Kb7 Kd6 65. Ka6 Kc7 66. Nd5+ Kb8 67. Kb6 Rh1 68. Kxa5 Ka7 69. Be2 Rc1 70. Kb4 Rb1+ 71. Kc5 Rc1+ 72. Bc4 Rg1 73. Ne7 Rg5+ 74. Kb4 Kb6 75. Nd5+ Ka7 76. Nc3 Kb6 77. Nb5 Rg1 78. a5+ Ka6 79. Nd4+ Ka7 80. Nc6+ Kb7 81. Nd4 Ka7 82. Bd3 Rd1 83. Kc3 Ra1 84. Nb3 Rg1 85. Kb4 Rg4+ 86. Bc4 Rg5 87. Nd4 1/2-1/2

[Event "UZB-ch Men Final 2019"]
[Site "Tashkent"]
[Date "2019.07.10"]
[Round "9"]
[White "Abdisalimov, Abdimalik"]
[Black "Rakhimov, Rakhmatjon"]
[Result "1/2-1/2"]
[ECO "D35"]
[WhiteElo "2391"]
[BlackElo "2107"]
[Annotator "NA"]
[PlyCount "87"]
[EventDate "2019.??.??"]
[EventCountry "UZB"]
[SourceTitle "playchess.com"]
[Source "ChessBase"]
[SourceQuality "1"]
[TimeControl "5400+30"]

1. d4 Nf6 2. c4 e6 3. Nc3 d5 4. cxd5 exd5 5. Bg5 Be7 6. e3 O-O 7. Bd3 c6 8. Nge2 Re8 9. Qc2 Ne4 10. Bf4 f5 11. f3 Nxc3 12. Nxc3 Bg5 13. O-O-O g6 14. Kb1 Bxf4 15. exf4 Qd6 16. Rhe1 Rf8 17. g3 Be6 18. Qe2 Re8 19. Qe5 Qd8 20. Qe2 Nd7 21. h4 Nf6 22. Qf2 Qd6 23. Bc2 Re7 24. Na4 Rae8 25. Nc5 Bc8 26. Re5 b6 27. Nd3 Nd7 28. Rxe7 Rxe7 29. h5 gxh5 30. Rh1 Nf6 31. Ne5 Rg7 32. Bd3 c5 33. dxc5 bxc5 34. Rd1 Qb6 35. b3 Be6 36. Qc2 c4 37. Bxf5 cxb3 38. Bxe6+ Qxe6 39. axb3 Rxg3 40. Nc6 Qe3 41. Nd4 Rg1 42. Qc8+ Kf7 43. Qc7+ Kg6 44. Qc2+ 1/2-1/2

[Event "UZB-ch Men Final 2019"]
[Site "Tashkent"]
[Date "2019.07.10"]
[Round "9"]
[White "Sabirov, Asilbek"]
[Black "Karimov, Ibragim"]
[Result "0-1"]
[ECO "A48"]
[WhiteElo "2147"]
[BlackElo "2211"]
[Annotator "NA"]
[PlyCount "142"]
[EventDate "2019.??.??"]
[EventCountry "UZB"]
[SourceTitle "playchess.com"]
[Source "ChessBase"]
[SourceQuality "1"]
[TimeControl "5400+30"]

1. d4 Nf6 2. Nf3 g6 3. Bf4 Bg7 4. e3 d6 5. h3 O-O 6. Be2 Nbd7 7. O-O b6 8. a4 a5 9. Bh2 Bb7 10. c3 Qe8 11. Na3 e5 12. Nb5 Rc8 13. Na7 e4 14. Nd2 Ra8 15. Nb5 Qd8 16. Qc2 Re8 17. Rfb1 Nd5 18. b4 Bc6 19. Bc4 N7f6 20. bxa5 bxa5 21. Nb3 Qd7 22. Bf1 g5 23. c4 Ne7 24. Qd2 g4 25. Nxa5 Bxb5 26. axb5 gxh3 27. gxh3 Nf5 28. Nb3 Nh4 29. Qe2 Nf3+ 30. Kh1 Rac8 31. Nd2 Qf5 32. b6 cxb6 33. Rxb6 d5 34. c5 Nd7 35. Rba6 Nxc5 36. dxc5 Bxa1 37. Rxa1 Nxh2 38. Rc1 Nxf1 39. Qxf1 Re6 40. Nb3 Rh6 41. Kh2 Qe5+ 42. Kh1 Rhc6 43. Qd1 Kh8 44. Qd4 f6 45. Rg1 Qxd4 46. exd4 Rb8 47. Rg3 Rb4 48. Rc3 Rc8 49. Kh2 Rcb8 50. Na5 Rxd4 51. c6 Ra4 52. Rc5 d4 53. Nc4 Ra7 54. Nd6 Rc7 55. Nxe4 Rd8 56. Kg3 d3 57. Nd2 Rd6 58. Kf4 Rcxc6 59. Rxc6 Rxc6 60. Ke3 Rd6 61. Ne4 Rd8 62. Kd2 Kg7 63. Nc5 Kg6 64. Nxd3 Kf5 65. Ke3 Ra8 66. f3 Ra3 67. Ke2 Rxd3 68. Kxd3 Kf4 69. Ke2 Kg3 70. Ke3 f5 71. h4 h5 0-1

[Event "UZB-ch Men Final 2019"]
[Site "Tashkent"]
[Date "2019.07.11"]
[Round "10.1"]
[White "Saydaliev, Saidakbar"]
[Black "Abdisalimov, Abdimalik"]
[Result "0-1"]
[ECO "B54"]
[WhiteElo "2384"]
[BlackElo "2391"]
[Annotator "NA"]
[PlyCount "58"]
[EventDate "2019.07.02"]
[EventType "tourn"]
[EventCountry "UZB"]
[SourceTitle "playchess.com"]
[Source "ChessBase"]
[SourceQuality "1"]
[TimeControl "5400+30"]

1. e4 {[%emt 0:01:13]} c5 {[%emt 0:00:00]} 2. Nf3 {[%emt 0:00:26]} d6 {[%emt 0:00:00]} 3. d4 {[%emt 0:00:00]} cxd4 {[%emt 0:00:00]} 4. Nxd4 {[%emt 0:00:44]} Nf6 {[%emt 0:00:00]} 5. f3 {[%emt 0:01:32]} e5 {[%emt 0:00:02]} 6. Nb3 {[%emt 0:00:09]} Be6 {[%emt 0:00:09]} 7. c4 {[%emt 0:00:25]} Nbd7 {[%emt 0:00:08]} 8. Nc3 {[%emt 0:04:40]} Rc8 {[%emt 0:00:27]} 9. Be3 {[%emt 0:02:10]} Bxc4 {[%emt 0:01:48]} 10. Bxc4 {[%emt 0:00:50]} Rxc4 {[%emt 0:00:10]} 11. Qd3 {[%emt 0:01:01]} Rc6 {[%emt 0:01:28]} 12. Bxa7 {[%emt 0:00:42]} b6 {[%emt 0:00:21]} 13. a4 {[%emt 0:03:31]} Qa8 {[%emt 0:03:44]} 14. Nb5 {[%emt 0:00:22]} d5 {[%emt 0:00:21]} 15. O-O {[%emt 0:10:31]} Nc5 {[%emt 0:02:54]} 16. Nxc5 {[%emt 0:31:53]} Bxc5+ {[%emt 0:00:14]} 17. Kh1 {[%emt 0:00:01]} dxe4 {[%emt 0:00:11]} 18. fxe4 {[%emt 0:01:36]} O-O {[%emt 0:00:05]} 19. a5 {[%emt 0:01:17]} bxa5 {[%emt 0:00:13]} 20. Rxa5 {[%emt 0:00:15]} Bxa7 {[%emt 0:03:49]} 21. Rxa7 {[%emt 0:02:46]} Qb8 {[%emt 0:00:01]} 22. Ra5 {[%emt 0:01:01]} Rb6 {[%emt 0:01:04]} 23. Na3 {[%emt 0:08:42]} Rxb2 {[%emt 0:02:39]} 24. Nc4 {[%emt 0:00:00]} Qc7 {[%emt 0:10:21]} 25. Nxb2 {[%emt 0:12:02]} Qxa5 {[%emt 0:00:05]} 26. h3 {[%emt 0:00:27]} Rd8 {[%emt 0:00:54]} 27. Qc4 {[%emt 0:00:46]} Qa8 {[%emt 0:15:50]} 28. Qc7 {[%emt 0:03:23]} Re8 {[%emt 0:00:32]} 29. Nc4 {[%emt 0:04:06]} Rc8 {[%emt 0:00:21]} 0-1

[Event "UZB-ch Men Final 2019"]
[Site "Tashkent"]
[Date "2019.07.11"]
[Round "10.2"]
[White "Karimov, Ibragim"]
[Black "Dzhumaev, Marat"]
[Result "1/2-1/2"]
[ECO "C47"]
[WhiteElo "2211"]
[BlackElo "2439"]
[Annotator "NA"]
[PlyCount "86"]
[EventDate "2019.07.02"]
[EventType "tourn"]
[EventCountry "UZB"]
[SourceTitle "playchess.com"]
[Source "ChessBase"]
[SourceQuality "1"]
[TimeControl "5400+30"]

1. e4 {[%emt 0:00:00]} e5 {[%emt 0:02:00]} 2. Nf3 {[%emt 0:00:00]} Nc6 {[%emt 0:00:11]} 3. Nc3 {[%emt 0:00:37]} Nf6 {[%emt 0:00:32]} 4. d4 {[%emt 0:05:45]} exd4 {[%emt 0:00:31]} 5. Nxd4 {[%emt 0:00:06]} Bb4 {[%emt 0:01:57]} 6. Nxc6 {[%emt 0:00:25]} bxc6 {[%emt 0:00:09]} 7. Bd3 {[%emt 0:01:03]} O-O {[%emt 0:01:40]} 8. O-O {[%emt 0:00:12]} d5 {[%emt 0:00:07]} 9. exd5 {[%emt 0:01:39]} cxd5 {[%emt 0:00:11]} 10. h3 {[%emt 0:00:07]} c6 {[%emt 0:00:10]} 11. Qf3 {[%emt 0:00:24]} Rb8 {[%emt 0:00:27]} 12. Bf4 {[%emt 0:02:19]} Bd6 {[%emt 0:00:16]} 13. b3 {[%emt 0:01:59]} Qc7 {[%emt 0:01:22]} 14. Bxd6 {[%emt 0:02:26]} Qxd6 15. Na4 {[%emt 0:05:38]} Be6 {[%emt 0:07:18]} 16. Rfe1 {[%emt 0:28:04]} h6 {[%emt 0:10:49]} 17. Qe3 {[%emt 0:03:59]} Qc7 {[%emt 0:07:44]} 18. Nc5 {[%emt 0:07:10]} Rbe8 {[%emt 0:00:12]} 19. Qd4 {[%emt 0:00:31]} Bc8 {[%emt 0:00:12]} 20. b4 {[%emt 0:08:52]} Nh5 {[%emt 0:03:22]} 21. Re3 {[%emt 0:04:23]} Rxe3 {[%emt 0:01:23]} 22. Qxe3 {[%emt 0:01:53]} Nf4 {[%emt 0:00:16]} 23. Re1 {[%emt 0:01:37]} a5 {[%emt 0:05:01]} 24. a3 {[%emt 0:00:40]} axb4 {[%emt 0:00:30]} 25. axb4 {[%emt 0:00:05]} Qb8 {[%emt 0:10:25]} 26. c3 {[%emt 0:01:11]} Be6 {[%emt 0:21:40]} 27. Bc2 {[%emt 0:05:35]} Re8 {[%emt 0:03:36]} 28. Qe5 {[%emt 0:04:46]} Qxe5 {[%emt 0:01:36]} 29. Rxe5 {[%emt 0:00:03]} Kf8 {[%emt 0:07:14]} 30. h4 {[%emt 0:03:22]} Bc8 {[%emt 0:04:37]} 31. Rxe8+ {[%emt 0:00:24]} Kxe8 {[%emt 0:00:07]} 32. Kf1 {[%emt 0:00:35]} Ke7 {[%emt 0:00:16]} 33. g3 {[%emt 0:00:42]} Nh5 {[%emt 0:00:29]} 34. Ke2 {[%emt 0:00:56]} Nf6 {[%emt 0:00:27]} 35. f3 {[%emt 0:01:58]} Nh5 {[%emt 0:00:19]} 36. Kf2 {[%emt 0:00:26]} Kd6 {[%emt 0:00:23]} 37. Bd3 {[%emt 0:00:23]} g5 {[%emt 0:02:16]} 38. hxg5 {[%emt 0:01:06]} hxg5 {[%emt 0:00:07]} 39. Nb3 {[%emt 0:00:33]} Bd7 {[%emt 0:03:02]} 40. Nd4 {[%emt 0:00:35]} Ng7 {[%emt 0:02:08]} 41. f4 {[%emt 0:01:36]} gxf4 {[%emt 0:00:46]} 42. gxf4 {[%emt 0:00:04]} Nh5 {[%emt 0:00:17]} 43. Ke3 {[%emt 0:00:37]} Nf6 {[%emt 0:01:24] Ke4 Ke5+} 1/2-1/2

[Event "UZB-ch Men Final 2019"]
[Site "Tashkent"]
[Date "2019.07.11"]
[Round "10.3"]
[White "Iuldachev, Saidali"]
[Black "Sabirov, Asilbek"]
[Result "1-0"]
[ECO "C42"]
[WhiteElo "2451"]
[BlackElo "2147"]
[Annotator "ChessBase"]
[PlyCount "61"]
[EventDate "2019.07.02"]
[EventType "tourn"]
[EventCountry "UZB"]
[SourceTitle "playchess.com"]
[Source "ChessBase"]
[SourceQuality "1"]
[TimeControl "5400+30"]

1. e4 {[%emt 0:00:00]} e5 {[%emt 0:00:00]} 2. Nf3 {[%emt 0:00:06]} Nf6 {[%emt 0:00:00]} 3. Nxe5 {[%emt 0:03:05]} d6 {[%emt 0:00:00]} 4. Nf3 {[%emt 0:00:07]} Nxe4 {[%emt 0:00:03]} 5. Qe2 {[%emt 0:02:19]} Qe7 {[%emt 0:00:11]} 6. d3 {[%emt 0:00:05]} Nf6 {[%emt 0:00:02]} 7. Bg5 {[%emt 0:00:06]} Qxe2+ {[%emt 0:00:07]} 8. Bxe2 {[%emt 0:00:03]} Be7 {[%emt 0:00:01]} 9. Nc3 {[%emt 0:00:15]} c6 {[%emt 0:00:08]} 10. O-O-O {[%emt 0:00:33]} Na6 {[%emt 0:02:14]} 11. Rhe1 {[%emt 0:12:48]} Nc7 12. Ne4 {[%emt 0:07:05]} Nxe4 {[%emt 0:07:35]} 13. dxe4 {[%emt 0:00:13]} Bxg5+ {[%emt 0:02:35]} 14. Nxg5 {[%emt 0:00:09]} Ke7 {[%emt 0:02:24]} 15. f4 {[%emt 0:07:34]} g6 {[%emt 0:09:48]} 16. b3 {[%emt 0:05:01]} f6 {[%emt 0:04:13]} 17. Nf3 {[%emt 0:08:39]} Bg4 {[%emt 0:00:26]} 18. Nd4 {[%emt 0:02:38]} Bxe2 {[%emt 0:00:13]} 19. Rxe2 {[%emt 0:00:03]} Ne6 {[%emt 0:00:21]} 20. Nf5+ {[%emt 0:00:35]} gxf5 {[%emt 0:00:35]} 21. exf5 {[%emt 0:00:07]} d5 {[%emt 0:00:12]} 22. c4 {[%emt 0:03:21]} Rhd8 {[%emt 0:00:46]} 23. Rxe6+ {[%emt 0:00:13]} Kf7 {[%emt 0:00:05]} 24. cxd5 {[%emt 0:01:36]} cxd5 {[%emt 0:00:11]} 25. Rd3 {[%emt 0:00:18]} Rac8+ {[%emt 0:00:37]} 26. Kd2 {[%emt 0:00:05]} Rc6 {[%emt 0:00:21]} 27. Rh3 {[%emt 0:01:03]} Rxe6 {[%emt 0:01:39]} 28. fxe6+ {[%emt 0:00:09]} Kxe6 {[%emt 0:00:07]} 29. Rxh7 {[%emt 0:00:08]} Rb8 {[%emt 0:00:14]} 30. g4 {[%emt 0:01:07]} a5 {[%emt 0:00:07]} 31. Rh6 {[%emt 0:09:19]} 1-0

[Event "UZB-ch Men Final 2019"]
[Site "Tashkent"]
[Date "2019.07.11"]
[Round "10.5"]
[White "Khoroshev, Nikita"]
[Black "Vokhidov, Shamsiddin"]
[Result "0-1"]
[ECO "D31"]
[WhiteElo "2414"]
[BlackElo "2515"]
[Annotator "ChessBase"]
[PlyCount "100"]
[EventDate "2019.07.02"]
[EventType "tourn"]
[EventCountry "UZB"]
[SourceTitle "playchess.com"]
[Source "ChessBase"]
[SourceQuality "1"]
[TimeControl "5400+30"]

1. Nf3 {[%emt 0:00:00]} d5 {[%emt 0:00:40]} 2. d4 {[%emt 0:01:26]} c6 {[%emt 0:02:17]} 3. c4 {[%emt 0:00:42]} dxc4 {[%emt 0:00:35]} 4. e3 {[%emt 0:02:16]} b5 {[%emt 0:04:10]} 5. a4 {[%emt 0:00:34]} e6 {[%emt 0:00:22]} 6. Nc3 {[%emt 0:02:00]} Bb4 {[%emt 0:01:44]} 7. Bd2 {[%emt 0:02:18]} a5 {[%emt 0:02:19]} 8. axb5 {[%emt 0:01:54]} Bxc3 {[%emt 0:00:10]} 9. Bxc3 {[%emt 0:00:03]} cxb5 {[%emt 0:00:04]} 10. b3 {[%emt 0:00:04]} Bb7 {[%emt 0:00:16]} 11. bxc4 {[%emt 0:00:05]} b4 {[%emt 0:00:02]} 12. Bb2 {[%emt 0:00:08]} Nf6 {[%emt 0:00:13]} 13. c5 O-O {[%emt 0:08:10]} 14. Bb5 {[%emt 0:00:09]} Bc6 {[%emt 0:11:08]} 15. Ba4 {[%emt 0:01:43]} Bxa4 {[%emt 0:00:30]} 16. Qxa4 {[%emt 0:00:07]} Qd5 {[%emt 0:03:07]} 17. O-O {[%emt 0:07:56]} Nc6 {[%emt 0:01:41]} 18. Rfc1 {[%emt 0:06:13]} Ne4 {[%emt 0:06:11]} 19. Ne1 {[%emt 0:03:20]} f5 {[%emt 0:06:41]} 20. Nd3 {[%emt 0:01:52]} g5 {[%emt 0:08:41]} 21. Rc2 {[%emt 0:03:04]} Nf6 {[%emt 0:04:38]} 22. f3 {[%emt 0:05:31]} Qd7 {[%emt 0:03:00]} 23. Re1 {[%emt 0:05:34]} Ra7 {[%emt 0:01:55]} 24. Nf2 {[%emt 0:02:10]} Rc8 {[%emt 0:02:53]} 25. Rcc1 {[%emt 0:01:46]} Ne7 {[%emt 0:01:09]} 26. Ra1 {[%emt 0:00:15]} Qxa4 {[%emt 0:03:38]} 27. Rxa4 {[%emt 0:00:01]} Rd8 {[%emt 0:00:29]} 28. e4 {[%emt 0:01:36]} Kf7 {[%emt 0:00:12]} 29. g4 {[%emt 0:10:13]} fxe4 {[%emt 0:08:19]} 30. fxe4 {[%emt 0:00:08]} Nc6 {[%emt 0:00:04]} 31. Rd1 {[%emt 0:10:03]} Rad7 {[%emt 0:02:47]} 32. Rf1 {[%emt 0:00:01]} Kg6 {[%emt 0:02:50]} 33. e5 {[%emt 0:00:07]} Nd5 {[%emt 0:00:48]} 34. Ne4 {[%emt 0:00:07]} Nf4 {[%emt 0:01:22]} 35. Nd6 {[%emt 0:04:19]} Rf8 {[%emt 0:00:31]} 36. Kh1 {[%emt 0:00:07]} Rdd8 {[%emt 0:00:31]} 37. Nb7 {[%emt 0:09:44]} Nd3 {[%emt 0:01:08]} 38. Rxf8 {[%emt 0:01:10]} Rxf8 {[%emt 0:00:02]} 39. Ba1 {[%emt 0:00:01]} Rb8 {[%emt 0:04:25]} 40. Nd6 {[%emt 0:03:18]} b3 {[%emt 0:00:08]} 41. d5 {[%emt 0:00:02]} exd5 {[%emt 0:00:32]} 42. e6 {[%emt 0:00:01]} Nxc5 {[%emt 0:01:01]} 43. h4 {[%emt 0:00:06]} b2 {[%emt 0:00:33]} 44. Bxb2 {[%emt 0:00:46]} Rxb2 {[%emt 0:00:06]} 45. e7 {[%emt 0:00:16]} Nxe7 {[%emt 0:00:27]} 46. Rxa5 {[%emt 0:00:08]} Ne4 {[%emt 0:00:27]} 47. Nxe4 {[%emt 0:02:39]} dxe4 {[%emt 0:00:02]} 48. Rxg5+ {[%emt 0:00:01]} Kf6 {[%emt 0:00:07]} 49. Rh5 {[%emt 0:00:08]} e3 {[%emt 0:00:19]} 50. g5+ {[%emt 0:00:15]} Ke5 0-1